Workbook

Sheet INSTRUCTIONS - UNIVERSITY
A2: Sandia National Laboratories
A3: Contract Audit
A4: ECC Instructions
A6: Cost Reimbursable (University) Type Contracts
A7: User Information:
A8: The following information does not supersede any statute, regulation or policy that is, was or will be in effect. It is designed as a tool to answer general questions that are commonly posed by contractors that are subject to audits from the Sandia Contract Audit Department, Organization 851 (hereinafter, Contract Audit). For specific questions pertaining to your contract, contact the appropriate Subcontracting Professional (SP) listed on your contract.
A11: In preparing the ECC, we require each contractor reconcile their claim to the general ledger amount to ensure that all costs are properly accounted for. Costs previously invoiced/not invoiced in error can be adjusted on your claim.
A13: **All ECCs should be submitted in a single Excel workbook with separate worksheets for each contract. There should be a separate submission for each fiscal year.
A14: If extra rows are needed: Ctrl + Shift + R
B17: 1. Header: Please fill out the university name, contract number, period of performance of the contract (beginning and end dates of contract), contract ceiling price and fiscal year for which the claimed costs apply.
B18: 2. Month: This will auto populate once University Fiscal Year End is updated.
B19: 3. Direct Labor: Insert actual direct labor costs by level of effort and non-level of effort for each labor category.
B20: 4. Direct Labor Fringe: Insert the fringe rates associated with your claimed direct labor charges if these are being billed and claimed. If there is more than one direct labor fringe rate used, list them separately. Examples include: Off-site direct labor fringe, on-site direct labor fringe, overtime direct labor fringe. All claimed indirect rates must be allowable, allocable, and audited or approved by your cognizant agency. Please see the “Indirect Rate” section below in this document for additional information.
B21: 5. Direct Supplies/Materials: List the actual direct material costs for each accounting period.
B22: 6. Tuition/Fees: List the actual tuition being claimed for each accounting period.
B23: 7. Direct Travel: List applicable domestic and foreign travel charges for each accounting period. Domestic travel charges should be listed on a separate row than foreign travel charges.
B24: 8. Subcontracts/Consultant/Temporary Labor: List the costs incurred by Subcontractors/Consultants. If subcontractor costs are being claimed, complete the "Subcontractor Summary" template tab.
B25: 9. ODCs (Other Direct Costs): For any other direct costs that you are claiming, segregate those costs accordingly. Some examples may include: Licensing fees, equipment leases, shipping and handling, taxes, etc. All other direct costs should be grouped together in this column. If you need to explain what the group consists of please include a comment in the comments section (use column T).
B26: 10. On-Site, Off-site & other F&A costs: must be segregated according to their rates and basis. All claimed indirect rates must be allowable, allocable, and audited or approved by your cognizant agency. Please see the “Indirect Rate” section below in this document for additional information.
B27: 11. Equipment: List all equipment claimed in the appropriate accounting period when the cost was incurred.
B28: 11. Total per General Ledger: This will auto populate.
B29: 12. Adjustments by month and cost element: Include any amounts that you have over billed or under billed to Sandia and discovered subsequent to the billings. This could be due to errors or omissions. This is an opportunity to claim any corrections noted as part of your review. Please provide a detailed explanation in the comments column indicating which cost category the adjustment is in reference to and why the adjustment was made.
B30: 13.Total Amount Claimed: This will auto populate.
B31: 14.Comments: Use this column to describe any adjustments or other important aspects of your electronic cost claim.
B32: 15. Indirect Rates. If Sandia is the cognizant agency and you are claiming and billing indirect rates, then then the DCAA Incurred Cost Electronically (ICE) Model, General Ledger and Financial Statements must be submitted with the ECC. The DCAA ICE is located at https://www.dcaa.mil/. If Sandia is not the cognizant agency, you are required to provide the latest rate report(s) from the cognizant agency as part of your cost claim. The rate report sheets may be e-mailed to us. Additionally, please provide the cognizant agency’s contact information including auditor’s name and phone number.
E33: Please email any questions to snlaudit@sandia.gov
A35: Submission Requirements
A36: ECCs should be submitted annually for each contract to which Sandia has audit rights. The annual submissions are due within 90 days after a contractor’s fiscal year end. Please note that it is imperative that you check for accuracy and completeness prior to your submission.
A37: Please include any indirect rate required information and General Ledger Detail with submission
A38: Additional information and points of contact may be found at the Contract Audit website at: http://www.sandia.gov/working_with_sandia/current_suppliers/contract_audit/index.html
A39: Send ECCs via e-mail to: snlaudit@sandia.gov
A43: Sandia is a multiprogram laboratory operated for the U.S. Department of Energy’s National Nuclear Security Administration
A44: by National Technology and Engineering Solutions of Sandia LLC under Contract DE-NA0003525.
A48: ='University ECC Template'!A55 -> Template Revised: 11/8/2023
A49: SAND2023-135130

Sheet University ECC Template
A1: Contractor Name | E1: Please fill out one cost claim template for each auditable contract that you have with Sandia National Laboratories.
A2: Contract Number:
A3: Period of Performance:
A4: Contract Estimated Cost: $
A6: Send to: snlaudit@sandia.gov | B6: University Fiscal Year End | E6: Enter amounts as recorded on your General Ledger (make any corrections in the adjustment row with comments)
B7: Current Fiscal Year
E8: =EDATE(C6,1) -> 1900-01-31 | F8: =EDATE(E8,1)+1 -> 60 | G8: =EDATE(F8,1) -> 1900-03-29 | H8: =EDATE(G8,1) -> 1900-04-29 | I8: =EDATE(H8,1) -> 1900-05-29 | J8: 1900-06-29 | K8: 1900-07-29 | L8: 1900-08-29 | M8: 1900-09-29 | N8: 1900-10-29 | O8: 1900-11-29 | P8: 1900-12-29
C9: Month | E9: =TEXT(E8,"mmmm") -> January | F9: =TEXT(F8,"mmmm") -> February | G9: March | H9: April | I9: May | J9: June | K9: July | L9: August | M9: September | N9: October | O9: November | P9: December
D10: Accounting Period | E10: 1 | F10: 2 | G10: 3 | H10: 4 | I10: 5 | J10: 6 | K10: 7 | L10: 8 | M10: 9 | N10: 10 | O10: 11 | P10: 12
A11: Account Title | B11: Level of Effort or Non-Level of Effort | C11: GL Acct. Number | D11: Indirect Rate % | Q11: Total Per General Ledger | R11: Adjustments by Cost Element | S11: Total Amount Claimed | T11: Comments | AA11: Labor Category | AC11: Fiscal Year End
A12: Academic/Faculty Salaries | E12: 0 | F12: 0 | G12: 0 | H12: 0 | I12: 0 | J12: 0 | K12: 0 | L12: 0 | M12: 0 | N12: 0 | O12: 0 | P12: 0 | Q12: =ROUND(SUM(E12:P12),2) -> 0 | R12: 0 | S12: =ROUND(Q12+R12,2) -> 0 | AA12: Level of Effort | AC12: 2020-01-31
A13: Faculty Science Lab | E13: 0 | F13: 0 | G13: 0 | H13: 0 | I13: 0 | J13: 0 | K13: 0 | L13: 0 | M13: 0 | N13: 0 | O13: 0 | P13: 0 | Q13: =ROUND(SUM(E13:P13),2) -> 0 | R13: 0 | S13: =ROUND(Q13+R13,2) -> 0 | AA13: Non-Level of Effort | AC13: 2020-02-28
A14: Graduate Assistants | E14: 0 | F14: 0 | G14: 0 | H14: 0 | I14: 0 | J14: 0 | K14: 0 | L14: 0 | M14: 0 | N14: 0 | O14: 0 | P14: 0 | Q14: 0 | R14: 0 | S14: 0 | AC14: 2020-03-31
A15: Hourly Employees | E15: 0 | F15: 0 | G15: 0 | H15: 0 | I15: 0 | J15: 0 | K15: 0 | L15: 0 | M15: 0 | N15: 0 | O15: 0 | P15: 0 | Q15: 0 | R15: 0 | S15: 0 | AC15: 2020-04-30
A16: Student Employees | E16: 0 | F16: 0 | G16: 0 | H16: 0 | I16: 0 | J16: 0 | K16: 0 | L16: 0 | M16: 0 | N16: 0 | O16: 0 | P16: 0 | Q16: 0 | R16: 0 | S16: 0 | AC16: 2020-05-31
AC17: 2020-06-30
A18: Academic/Faculty Fringe | E18: 0 | F18: 0 | G18: 0 | H18: 0 | I18: 0 | J18: 0 | K18: 0 | L18: 0 | M18: 0 | N18: 0 | O18: 0 | P18: 0 | Q18: 0 | R18: 0 | S18: 0 | AC18: 2020-07-31
A19: Faculty Science Lab Fringe | E19: 0 | F19: 0 | G19: 0 | H19: 0 | I19: 0 | J19: 0 | K19: 0 | L19: 0 | M19: 0 | N19: 0 | O19: 0 | P19: 0 | Q19: 0 | R19: 0 | S19: 0 | AC19: 2020-08-31
A20: Graduate Assistants Fringe | E20: 0 | F20: 0 | G20: 0 | H20: 0 | I20: 0 | J20: 0 | K20: 0 | L20: 0 | M20: 0 | N20: 0 | O20: 0 | P20: 0 | Q20: 0 | R20: 0 | S20: 0 | AC20: 2020-09-30
A21: Hourly Employees Fringe | E21: 0 | F21: 0 | G21: 0 | H21: 0 | I21: 0 | J21: 0 | K21: 0 | L21: 0 | M21: 0 | N21: 0 | O21: 0 | P21: 0 | Q21: 0 | R21: 0 | S21: 0 | AC21: 2020-10-31
A22: Student Employee Fringe | E22: 0 | F22: 0 | G22: 0 | H22: 0 | I22: 0 | J22: 0 | K22: 0 | L22: 0 | M22: 0 | N22: 0 | O22: 0 | P22: 0 | Q22: 0 | R22: 0 | S22: 0 | AC22: 2020-11-30
AC23: 2020-12-31
A24: Supplies/Materials | E24: 0 | F24: 0 | G24: 0 | H24: 0 | I24: 0 | J24: 0 | K24: 0 | L24: 0 | M24: 0 | N24: 0 | O24: 0 | P24: 0 | Q24: 0 | R24: 0 | S24: 0
A25: Tuition/Fees | E25: 0 | F25: 0 | G25: 0 | H25: 0 | I25: 0 | J25: 0 | K25: 0 | L25: 0 | M25: 0 | N25: 0 | O25: 0 | P25: 0 | Q25: 0 | R25: 0 | S25: 0
A26: Domestic Direct Travel | E26: 0 | F26: 0 | G26: 0 | H26: 0 | I26: 0 | J26: 0 | K26: 0 | L26: 0 | M26: 0 | N26: 0 | O26: 0 | P26: 0 | Q26: 0 | R26: 0 | S26: 0
A27: Foreign Direct Travel | E27: 0 | F27: 0 | G27: 0 | H27: 0 | I27: 0 | J27: 0 | K27: 0 | L27: 0 | M27: 0 | N27: 0 | O27: 0 | P27: 0 | Q27: 0 | R27: 0 | S27: 0
A28: Other Direct Costs | E28: 0 | F28: 0 | G28: 0 | H28: 0 | I28: 0 | J28: 0 | K28: 0 | L28: 0 | M28: 0 | N28: 0 | O28: 0 | P28: 0 | Q28: 0 | R28: 0 | S28: 0
A30: F&A On-Site - Research | E30: 0 | F30: 0 | G30: 0 | H30: 0 | I30: 0 | J30: 0 | K30: 0 | L30: 0 | M30: 0 | N30: 0 | O30: 0 | P30: 0 | Q30: 0 | R30: 0 | S30: 0
A31: F&A On-Site - Instruction | E31: 0 | F31: 0 | G31: 0 | H31: 0 | I31: 0 | J31: 0 | K31: 0 | L31: 0 | M31: 0 | N31: 0 | O31: 0 | P31: 0 | Q31: 0 | R31: 0 | S31: 0
A32: F&A Off-Site - Research | E32: 0 | F32: 0 | G32: 0 | H32: 0 | I32: 0 | J32: 0 | K32: 0 | L32: 0 | M32: 0 | N32: 0 | O32: 0 | P32: 0 | Q32: 0 | R32: 0 | S32: 0
A33: F&A Off-Site - Instruction | E33: 0 | F33: 0 | G33: 0 | H33: 0 | I33: 0 | J33: 0 | K33: 0 | L33: 0 | M33: 0 | N33: 0 | O33: 0 | P33: 0 | Q33: 0 | R33: 0 | S33: 0
A34: F&A Other | E34: 0 | F34: 0 | G34: 0 | H34: 0 | I34: 0 | J34: 0 | K34: 0 | L34: 0 | M34: 0 | N34: 0 | O34: 0 | P34: 0 | Q34: 0 | R34: 0 | S34: 0
A36: Subcontracts | E36: 0 | F36: 0 | G36: 0 | H36: 0 | I36: 0 | J36: 0 | K36: 0 | L36: 0 | M36: 0 | N36: 0 | O36: 0 | P36: 0 | Q36: 0 | R36: 0 | S36: 0
A37: Capital Equipment | E37: 0 | F37: 0 | G37: 0 | H37: 0 | I37: 0 | J37: 0 | K37: 0 | L37: 0 | M37: 0 | N37: 0 | O37: 0 | P37: 0 | Q37: 0 | R37: 0 | S37: 0
A38: Non-Capital Equipment | E38: 0 | F38: 0 | G38: 0 | H38: 0 | I38: 0 | J38: 0 | K38: 0 | L38: 0 | M38: 0 | N38: 0 | O38: 0 | P38: 0 | Q38: 0 | R38: 0 | S38: 0
A40: Total per General Ledger | E40: =ROUND(SUM(E12:E39),2) -> 0 | F40: 0 | G40: 0 | H40: 0 | I40: 0 | J40: 0 | K40: 0 | L40: 0 | M40: 0 | N40: 0 | O40: 0 | P40: 0 | Q40: 0 | R40: =ROUND(SUM(R12:R38),2) -> 0 | S40: 0
A42: Adjustments by Month | E42: 0 | F42: 0 | G42: 0 | H42: 0 | I42: 0 | J42: 0 | K42: 0 | L42: 0 | M42: 0 | N42: 0 | O42: 0 | P42: 0 | Q42: 0 | R42: 0
A44: Total Claimed | E44: =ROUND(E40+E42,2) -> 0 | F44: =ROUND(F40+F42,2) -> 0 | G44: 0 | H44: 0 | I44: 0 | J44: 0 | K44: 0 | L44: 0 | M44: 0 | N44: 0 | O44: 0 | P44: 0 | Q44: 0 | R44: 0 | S44: =S40 -> 0
A50: (1) Refer to the Instructions tab for assistance in filling this out.
A51: (2) Provide indirect rate substantiation as discussed in the Electronic Cost Claim Instructions if you are claiming any indirect rates.
A52: If you made no payments or have chosen to net any audit findings at the close-out of your contract, please state this in the "Comments" section.
A53: (3) The adjustments by month should agree with the Adjustments by Cost Elements.
A55: Template Revised: 11/8/2023

Sheet Subcontractor Summary Template
A1: Summary of Subcontractor/Consultant/Temp Labor Charges
A2: List all subcontractors/consultants/temporary labor used on the contract. A cost claim for these may be required during the audit.
B4: Dollar Amount
A5: Subcontractor A (Insert name here) | B5: 0
A6: Subcontractor B (Insert name here)
A7: Subcontractor C (Insert name here)
A8: Subtotal | B8: =SUM(B5:B7) -> 0
A10: Consultant A (Insert name here)
A11: Consultant B (Insert name here)
A12: Subtotal | B12: =SUM(B10:B11) -> 0
A14: Temp A (Insert name here)
A15: Temp B (Insert name here)
A16: Subtotal | B16: =SUM(B14:B15) -> 0
A18: Total Charges | B18: =SUM(B8,B12,B16) -> 0
A21: ='University ECC Template'!A55 -> Template Revised: 11/8/2023

Sheet Sample University ECC
A1: ABC University | E1: Please fill out one cost claim template for each auditable contract that you have with Sandia National Laboratories.
A2: Contract Number: 1234
A3: Period of Performance: 01/01/2016-1/01/2022
A4: Contract Estimated Cost: $1,250,000
A6: Send to: snlaudit@sandia.gov | B6: University Fiscal Year End | C6: 2020-06-30 | E6: Enter amounts as recorded on your General Ledger (make any corrections in the adjustment row with comments)
B7: Current Fiscal Year | C7: 2019
E8: =EDATE(C6,1) -> 2020-07-30 | F8: =EDATE(E8,1)+1 -> 2020-08-31 | G8: =EDATE(F8,1) -> 2020-09-30 | H8: =EDATE(G8,1) -> 2020-10-30 | I8: =EDATE(H8,1) -> 2020-11-30 | J8: 2020-12-30 | K8: 2021-01-30 | L8: 2021-02-28 | M8: 2021-03-28 | N8: 2021-04-28 | O8: 2021-05-28 | P8: 2021-06-28
C9: Month | E9: =TEXT(E8,"mmmm") -> July | F9: =TEXT(F8,"mmmm") -> August | G9: September | H9: October | I9: November | J9: December | K9: January | L9: February | M9: March | N9: April | O9: May | P9: June
D10: Accounting Period | E10: 1 | F10: 2 | G10: 3 | H10: 4 | I10: 5 | J10: 6 | K10: 7 | L10: 8 | M10: 9 | N10: 10 | O10: 11 | P10: 12
A11: Account Title | B11: Level of Effort or Non-Level of Effort | C11: GL Acct. Number | D11: Indirect Rate % | Q11: Total Per General Ledger | R11: Adjustments by Cost Element | S11: Total Amount Claimed | T11: Comments | Z11: Labor Category | AB11: Fiscal Year End
A12: Academic/Faculty Salaries | B12: Level of Effort | C12: 2011 | E12: 5668.72 | F12: 4588.89 | G12: 10244.44 | H12: 12654.23 | I12: 12654.23 | J12: 10658.98 | K12: 12654.23 | L12: 12654.23 | M12: 10524.32 | N12: 12654.23 | O12: 20564.21 | P12: 12654.23 | Q12: =ROUND(SUM(E12:P12),2) -> 138174.94 | R12: 0 | S12: =ROUND(Q12+R12,2) -> 138174.94 | Z12: Level of Effort | AB12: 2020-01-31
A13: Faculty Science Lab | B13: Level of Effort | C13: 2011 | H13: 5900 | J13: 5900 | Q13: =ROUND(SUM(E13:P13),2) -> 11800 | R13: 0 | S13: =ROUND(Q13+R13,2) -> 11800 | Z13: Non-Level of Effort | AB13: 2020-02-28
A14: Graduate Assistants | B14: Level of Effort | C14: 2311 | E14: 5000 | F14: 5000 | G14: 0 | H14: 5000 | I14: 5000 | J14: 0 | K14: 0 | L14: 5000 | M14: 0 | N14: 0 | O14: 0 | P14: 0 | Q14: 25000 | R14: 0 | S14: 25000 | AB14: 2020-03-31
A15: Hourly Employees | B15: Non-Level of Effort | C15: 2351 | E15: 1500 | F15: 0 | G15: 0 | H15: 1500 | I15: 0 | J15: 1500 | K15: 1500 | L15: 0 | M15: 0 | N15: 1500 | O15: 0 | P15: 0 | Q15: 7500 | R15: 0 | S15: 7500 | AB15: 2020-04-30
A16: Student Employees | C16: 2352 | E16: 0 | F16: 0 | G16: 0 | H16: 0 | I16: 0 | J16: 0 | K16: 0 | L16: 0 | M16: 0 | N16: 0 | O16: 0 | P16: 0 | Q16: 0 | R16: 0 | S16: 0 | AB16: 2020-05-31
AB17: 2020-06-30
A18: Academic/Faculty Fringe | C18: 2012 | D18: 0.53 | E18: =E12*$D$18 -> 3004.4216 | F18: =F12*$D$18 -> 2432.1117 | G18: 5429.5532 | H18: 6706.7419 | I18: 6706.7419 | J18: 5649.2594 | K18: 6706.7419 | L18: 6706.7419 | M18: 5577.8896 | N18: 6706.7419 | O18: 10899.0313 | P18: 6706.7419 | Q18: 73232.72 | R18: 0 | S18: 73232.72 | AB18: 2020-07-31
A19: Faculty Science Lab Fringe | C19: 2025 | D19: 0.02 | E19: =E13*$D$19 -> 0 | F19: =F13*$D$19 -> 0 | G19: 0 | H19: 118 | I19: 0 | J19: 118 | K19: 0 | L19: 0 | M19: 0 | N19: 0 | O19: 0 | P19: 0 | Q19: 236 | R19: 0 | S19: 236 | AB19: 2020-08-31
A20: Graduate Assistants Fringe | C20: 2312 | D20: 0.2 | E20: =$D$20*E14 -> 1000 | F20: =$D$20*F14 -> 1000 | G20: =$D$20*G14 -> 0 | H20: 1000 | I20: 1000 | J20: 0 | K20: 0 | L20: 1000 | M20: 0 | N20: 0 | O20: 0 | P20: 0 | Q20: 5000 | R20: 0 | S20: 5000 | AB20: 2020-09-30
A21: Hourly Employees Fringe | C21: 2380 | D21: 0.01 | E21: =$D$21*E15 -> 15 | F21: =$D$21*F15 -> 0 | G21: 0 | H21: 15 | I21: 0 | J21: 15 | K21: 15 | L21: 0 | M21: 0 | N21: 15 | O21: 0 | P21: 0 | Q21: 75 | R21: 0 | S21: 75 | AB21: 2020-10-31
A22: Student Employee Fringe | C22: 2313 | E22: 0 | F22: 0 | G22: 0 | H22: 0 | I22: 0 | J22: 0 | K22: 0 | L22: 0 | M22: 0 | N22: 0 | O22: 0 | P22: 0 | Q22: 0 | R22: 0 | S22: 0 | AB22: 2020-11-30
AB23: 2020-12-31
A24: Supplies/Materials | C24: 3540/4290 | E24: 500 | G24: 320 | H24: 0 | I24: 365 | J24: 0 | K24: 0 | L24: 0 | M24: 0 | N24: 0 | O24: 0 | P24: 0 | Q24: 1185 | R24: -300 | S24: 885 | T24: Prior audit adjustment for FY 2018, booked in FY 2019
A25: Tuition/Fees | C25: 4600 | E25: 0 | F25: 0 | G25: 0 | H25: 0 | I25: 0 | J25: 0 | K25: 0 | L25: 0 | M25: 0 | N25: 0 | O25: 0 | P25: 0 | Q25: 0 | R25: 0 | S25: 0
A26: Domestic Direct Travel | C26: 3110/3120/3130 | E26: 1153.14 | F26: 0 | G26: 0 | H26: 0 | I26: 810.59 | J26: 0 | K26: 0 | L26: 0 | M26: 0 | N26: 0 | O26: 0 | P26: 0 | Q26: 1963.73 | S26: 1963.73
A27: Foreign Direct Travel | C27: 3111 | E27: 0 | F27: 0 | G27: 2500 | H27: 0 | I27: 0 | J27: 0 | K27: 0 | L27: 0 | M27: 0 | N27: 0 | O27: 0 | P27: 0 | Q27: 2500 | R27: 0 | S27: 2500
A28: Other Direct Costs | C28: 4350 | E28: 0 | F28: 895 | G28: 0 | H28: 0 | I28: 0 | J28: 0 | K28: 0 | L28: 0 | M28: 0 | N28: 0 | O28: 0 | Q28: 895 | R28: 0 | S28: 895
A30: F&A On-Site - Research | C30: 9500 | D30: 0.49 | E30: =SUM(E12:E24,E26:E28)*$D$30 -> 8742.227984 | F30: =SUM(F12:F24,F26:F28)*$D$30 -> 6818.840833 | G30: 9062.056668 | H30: 16118.04623 | I30: 13002.91533 | J30: 11682.20731 | K30: 10229.22623 | L30: 12426.87623 | M30: 7890.082704 | N30: 10229.22623 | O30: 15416.98824 | P30: 9486.876231 | Q30: 131105.57 | R30: 0 | S30: 131105.57
A31: F&A On-Site - Instruction | C31: 9501 | D31: 0.49 | Q31: 0 | R31: 0 | S31: 0
A32: F&A Off-Site - Research | C32: 9502 | D32: 0.26 | Q32: 0 | R32: 0 | S32: 0
A33: F&A Off-Site - Instruction | C33: 9503 | D33: 0.26 | Q33: 0 | R33: 0 | S33: =ROUND(Q33+R33,2) -> 0
A34: F&A Other | C34: 9504 | D34: 0.2 | Q34: 0 | R34: 0 | S34: 0
A36: Subcontracts | C36: 5250 | E36: 0 | F36: 0 | G36: 5000 | H36: 6000 | I36: 0 | J36: 0 | K36: 0 | L36: 5000 | M36: 2700 | N36: 0 | O36: 0 | P36: 0 | Q36: =SUM(E36:P36) -> 18700 | R36: 0 | S36: 18700
A37: Capital Equipment | C37: 4578 | E37: 7000 | F37: 0 | G37: 0 | H37: 0 | I37: 0 | J37: 0 | K37: 0 | L37: 0 | M37: 0 | N37: 0 | O37: 0 | P37: 0 | Q37: 7000 | R37: 0 | S37: 7000
A38: Non-Capital Equipment | C38: 4579 | E38: 0 | F38: 0 | G38: 0 | H38: 0 | I38: 0 | J38: 0 | K38: 0 | L38: 0 | M38: 0 | N38: 0 | O38: 0 | P38: 0 | Q38: 0 | R38: 0 | S38: 0
A40: Total per General Ledger | E40: =ROUND(SUM(E12:E16,E18:E22,E24:E28,E30:E34,E36:E38),2) -> 33583.51 | F40: 20734.84 | G40: 32556.05 | H40: 55012.02 | I40: 39539.48 | J40: 35523.45 | K40: 31105.2 | L40: 42787.85 | M40: 26692.29 | N40: 31105.2 | O40: 46880.23 | P40: 28847.85 | Q40: 424367.97 | R40: =ROUND(SUM(R12:R38),2) -> -300 | S40: 424067.97
A42: Adjustments by Month | E42: 0 | F42: 0 | G42: 0 | H42: 0 | I42: -300 | J42: 0 | K42: 0 | M42: 0 | N42: 0 | O42: 0 | P42: 0 | Q42: 0 | R42: 0
A44: Total Claimed | E44: =ROUND(E40+E42,2) -> 33583.51 | F44: =ROUND(F40+F42,2) -> 20734.84 | G44: 32556.05 | H44: 55012.02 | I44: 39239.48 | J44: 35523.45 | K44: 31105.2 | L44: 42787.85 | M44: 26692.29 | N44: 31105.2 | O44: 46880.23 | P44: 28847.85 | Q44: =ROUND(Q40+Q42,2) -> 424367.97 | R44: -300 | S44: =S40 -> 424067.97
A50: (1) Refer to the Instructions tab for assistance in filling this out.
A51: (2) Provide indirect rate substantiation as discussed in the Electronic Cost Claim Instructions if you are claiming any indirect rates.
A52: If you made no payments or have chosen to net any audit findings at the close-out of your contract, please state this in the "Comments" section.
A53: (4) The adjustments by month should agree with the Adjustments by Cost Elements.
A55: ='University ECC Template'!A55 -> Template Revised: 11/8/2023

Sheet General Ledger Detail Sample
A1: GL Account Code | B1: Account Name | C1: Cost Category | D1: DESCRIPTION | E1: TRANSACTION DATE | F1: REF. | G1: REV/EXP | H1: Contract # | I1: Month | J1: FY
A2: 3120 | B2: COMMON CARRIER | C2: Travel | D2: Smith, Jim | E2: 2018-07-04 | F2: T878951 | G2: 989 | H2: 1234 | I2: Jul | J2: 2019
A3: 3120 | B3: COMMON CARRIER | C3: Travel | D3: Smith, John | E3: 2018-07-04 | F3: T879174 | G3: 164.14 | H3: 1234 | I3: Jul | J3: 2019
A4: 4290 | B4: LD TELEPHONE CHARGE | C4: Materials/Services | D4: Jones, Sam | E4: 2018-07-19 | F4: T421423 | G4: 500 | H4: 1234 | I4: Jul | J4: 2019
A5: 2011 | B5: FACULTY SALARY | C5: Faculty Salary | D5: Jones, Sam | E5: 2018-07-30 | F5: 5511-3 | G5: 5668.72 | H5: 1234 | I5: Jul | J5: 2019
A6: 2012 | B6: FACULTY FRINGE | C6: Faculty Fringe | D6: Jones, Sam | E6: 2018-07-30 | F6: 5511-3 | G6: 3004.42 | H6: 1234 | I6: Jul | J6: 2019
A7: 2311 | B7: GRA SALARY | C7: GRA Salary | D7: Smith John | E7: 2018-07-30 | F7: 5504-2 | G7: 5000 | H7: 1234 | I7: Jul | J7: 2019
A8: 2312 | B8: GRA FRINGE | C8: GRA Fringe | D8: Smith John | E8: 2018-07-30 | F8: 5504-2 | G8: 1000 | H8: 1234 | I8: Jul | J8: 2019
A9: 2351 | B9: HOURLY | C9: HOURLY | D9: Smith Jim | E9: 2018-07-30 | F9: 11354-2 | G9: 1500 | H9: 1234 | I9: Jul | J9: 2019
A10: 2380 | B10: HOURLY FRINGE | C10: Hrly Fringe | D10: Smith Jim | E10: 2018-07-30 | F10: 5504-2 | G10: 15 | H10: 1234 | I10: Jul | J10: 2019
A11: 4578 | B11: EQUIPMENT | C11: Capital Equip | D11: Jones, Sam | E11: 2018-07-31 | F11: 8578 | G11: 7000 | H11: 1234 | I11: Jul | J11: 2019
A12: 9500 | B12: FAC & ADM CHARGE | C12: F&A | D12: Indirect Costs | E12: 2018-07-31 | F12: 953 | G12: 8742.23 | H12: 1234 | I12: Jul | J12: 2019
A13: 2011 | B13: FACULTY SALARY | C13: Faculty Salary | D13: Jones, Sam | E13: 2018-08-02 | F13: 5511-3 | G13: 4588.89 | H13: 1234 | I13: Aug | J13: 2019
A14: 4350 | B14: OTHER DIRECT COSTS | C14: ODC | D14: Smith, John | E14: 2018-08-19 | F14: T421423 | G14: 895 | H14: 1234 | I14: Aug | J14: 2019
A15: 9500 | B15: FAC & ADM CHARGE | C15: F&A | D15: Indirect Costs | E15: 2018-08-29 | F15: 953 | G15: 6818.84 | H15: 1234 | I15: Aug | J15: 2019
A16: 2012 | B16: FACULTY FRINGE | C16: Faculty Fringe | D16: Jones, Sam | E16: 2018-08-30 | F16: 5511-3 | G16: 2432.11 | H16: 1234 | I16: Aug | J16: 2019
A17: 2311 | B17: GRA SALARY | C17: GRA Salary | D17: Smith John | E17: 2018-08-30 | F17: 5504-2 | G17: 5000 | H17: 1234 | I17: Aug | J17: 2019
A18: 2312 | B18: GRA FRINGE | C18: GRA Fringe | D18: Smith John | E18: 2018-08-30 | F18: 5504-2 | G18: 1000 | H18: 1234 | I18: Aug | J18: 2019
A19: 5250 | B19: SUBCONTRACTS | C19: Subs/Consultants | D19: Subs Inc. | E19: 2018-09-19 | F19: T42189 | G19: 5000 | H19: 1234 | I19: Sept | J19: 2019
A20: 3111 | B20: FORGN TRAVEL | C20: Forgn Travel | D20: Jones, Sam | E20: 2018-09-28 | F20: T819047 | G20: 2500 | H20: 1234 | I20: Sept | J20: 2019
A21: 2011 | B21: FACULTY SALARY | C21: Faculty Salary | D21: Jones, Sam | E21: 2018-09-30 | F21: 5511 | G21: 10244.44 | H21: 1234 | I21: Sep | J21: 2019
A22: 2012 | B22: FACULTY FRINGE | C22: Faculty Fringe | D22: Jones, Sam | E22: 2018-09-30 | F22: 5511-3 | G22: 5429.55 | H22: 1234 | I22: Sept | J22: 2019
A23: 3540 | B23: BOOKS/PERIOD/SUBSCRIP | C23: Materials/Services | D23: ABC Book | E23: 2018-09-30 | F23: 402311 | G23: 320 | H23: 1234 | I23: Sep | J23: 2019
A24: 9500 | B24: FAC & ADM CHARGE | C24: F&A | D24: Indirect Costs | E24: 2018-09-30 | F24: 953 | G24: 9062.06 | H24: 1234 | I24: Sep | J24: 2019
A25: 2012 | B25: FACULTY FRINGE | C25: Faculty Fringe | D25: Jones, Sam | E25: 2018-10-02 | F25: 5511-3 | G25: 6706.74 | H25: 1234 | I25: Oct | J25: 2019
A26: 2011 | B26: FACULTY SALARY | C26: Faculty Salary | D26: Jones, Sam | E26: 2018-10-13 | F26: 5511 | G26: 12654.23 | H26: 1234 | I26: Oct | J26: 2019
A27: 2011 | B27: FACULTY SALARY | C27: Faculty Science Lab | D27: Smith, Joe | E27: 2018-10-14 | F27: 5511-3 | G27: 5900 | H27: 1234 | I27: Oct | J27: 2019
A28: 2025 | B28: FACULTY SCIENCE FRINGE | C28: Faculty Sci Fringe | D28: Smith, Joe | E28: 2018-10-14 | F28: 5511-3 | G28: 118 | H28: 1234 | I28: Oct | J28: 2019
A29: 5250 | B29: SUBCONTRACTS | C29: Subs/Consultants | D29: Sub 3 | E29: 2018-10-19 | F29: T42190 | G29: 6000 | H29: 1234 | I29: Oct | J29: 2019
A30: 2311 | B30: GRA SALARY | C30: GRA Salary | D30: Smith John | E30: 2018-10-30 | F30: 5504-2 | G30: 5000 | H30: 1234 | I30: Oct | J30: 2019
A31: 2312 | B31: GRA FRINGE | C31: GRA Fringe | D31: Smith Jim | E31: 2018-10-30 | F31: 11354-2 | G31: 1000 | H31: 1234 | I31: Oct | J31: 2019
A32: 2351 | B32: HOURLY | C32: HOURLY | D32: Smith Jim | E32: 2018-10-30 | F32: 11354-2 | G32: 1500 | H32: 1234 | I32: Oct | J32: 2019
A33: 2380 | B33: HOURLY FRINGE | C33: Hrly Fringe | D33: Smith Jim | E33: 2018-10-30 | F33: 5504-2 | G33: 15 | H33: 1234 | I33: Oct | J33: 2019
A34: 9500 | B34: FAC & ADM CHARGE | C34: F&A | D34: Indirect Costs | E34: 2018-10-31 | F34: 953 | G34: 16118.05 | H34: 1234 | I34: Oct | J34: 2019
A35: 3110 | B35: MISC TRAVEL | C35: Travel | D35: Jones, Sam | E35: 2018-11-02 | F35: T819047 | G35: 175.42 | H35: 1234 | I35: Nov | J35: 2019
A36: 3110 | B36: MISC TRAVEL | C36: Travel | D36: Jones, Sam | E36: 2018-11-02 | F36: T819047 | G36: -9 | H36: 1234 | I36: Nov | J36: 2019
A37: 3110 | B37: MISC TRAVEL | C37: Travel | D37: Jones, Sam | E37: 2018-11-02 | F37: T819047 | G37: -23 | H37: 1234 | I37: Nov | J37: 2019
A38: 3130 | B38: OSET PER DIEM | C38: Travel | D38: Jones, Sam | E38: 2018-11-02 | F38: T819047 | G38: 667.17 | H38: 1234 | I38: Nov | J38: 2019
A39: 3540 | B39: BOOKS/PERIOD/SUBSCRIP | C39: Materials/Services | D39: ABC Book | E39: 2018-11-03 | F39: 404275 | G39: 365 | H39: 1234 | I39: Nov | J39: 2019
A40: 2011 | B40: FACULTY SALARY | C40: Faculty Salary | D40: Jones, Sam | E40: 2018-11-15 | F40: 5511 | G40: 12654.23 | H40: 1234 | I40: Nov | J40: 2019
A41: 2012 | B41: FACULTY FRINGE | C41: Faculty Fringe | D41: Jones, Sam | E41: 2018-11-21 | F41: 5511-3 | G41: 6706.74 | H41: 1234 | I41: Nov | J41: 2019
A42: 2311 | B42: GRA SALARY | C42: GRA Salary | D42: Smith John | E42: 2018-11-30 | F42: 5504-2 | G42: 5000 | H42: 1234 | I42: Nov | J42: 2019
A43: 2312 | B43: GRA FRINGE | C43: GRA Fringe | D43: Smith John | E43: 2018-11-30 | F43: 11354-3 | G43: 1000 | H43: 1234 | I43: Nov | J43: 2019
A44: 9500 | B44: FAC & ADM CHARGE | C44: F&A | D44: Indirect Costs | E44: 2018-11-30 | F44: 953 | G44: 13002.92 | H44: 1234 | I44: Nov | J44: 2019
A45: 2025 | B45: FACULTY SCIENCE FRINGE | C45: Faculty Sci Fringe | D45: Smith, Joe | E45: 2018-12-14 | F45: 5511-3 | G45: 118 | H45: 1234 | I45: Dec | J45: 2019
A46: 2011 | B46: FACULTY SALARY | C46: Faculty Science Lab | D46: Smith, Joe | E46: 2018-12-15 | F46: 5511-3 | G46: 5900 | H46: 1234 | I46: Dec | J46: 2019
A47: 2011 | B47: FACULTY SALARY | C47: Faculty Salary | D47: Jones, Sam | E47: 2018-12-15 | F47: 5511 | G47: 10658.98 | H47: 1234 | I47: December | J47: 2019
A48: 2012 | B48: FACULTY FRINGE | C48: Faculty Fringe | D48: Jones, Sam | E48: 2018-12-28 | F48: 5511-3 | G48: 5649.26 | H48: 1234 | I48: Dec | J48: 2019
A49: 2351 | B49: HOURLY | C49: HOURLY | D49: Smith Jim | E49: 2018-12-30 | F49: 11354-2 | G49: 1500 | H49: 1234 | I49: Dec | J49: 2019
A50: 2380 | B50: HOURLY FRINGE | C50: Hrly Fringe | D50: Smith Jim | E50: 2018-12-30 | F50: 5504-2 | G50: 15 | H50: 1234 | I50: Dec | J50: 2019
A51: 9500 | B51: FAC & ADM CHARGE | C51: F&A | D51: Indirect Costs | E51: 2018-12-31 | F51: 953 | G51: 11682.21 | H51: 1234 | I51: Dec | J51: 2019
A52: 2011 | B52: FACULTY SALARY | C52: Faculty Salary | D52: Jones, Sam | E52: 2019-01-13 | F52: 5511 | G52: 12654.23 | H52: 1234 | I52: January | J52: 2019
A53: 2012 | B53: FACULTY FRINGE | C53: Faculty Fringe | D53: Jones, Sam | E53: 2019-01-15 | F53: 5511-3 | G53: 6706.74 | H53: 1234 | I53: Jan | J53: 2019
A54: 2351 | B54: HOURLY | C54: HOURLY | D54: Smith Jim | E54: 2019-01-30 | F54: 11354-2 | G54: 1500 | H54: 1234 | I54: Jan | J54: 2019
A55: 2380 | B55: HOURLY FRINGE | C55: Hrly Fringe | D55: Smith Jim | E55: 2019-01-30 | F55: 5504-2 | G55: 15 | H55: 1234 | I55: Jan | J55: 2019
A56: 9500 | B56: FAC & ADM CHARGE | C56: F&A | D56: Indirect Costs | E56: 2019-01-30 | F56: 953 | G56: 10229.23 | H56: 1234 | I56: Jan | J56: 2019
A57: 2011 | B57: FACULTY SALARY | C57: Faculty Salary | D57: Jones, Sam | E57: 2019-02-16 | F57: 5511 | G57: 12654.23 | H57: 1234 | I57: February | J57: 2019
A58: 5250 | B58: SUBCONTRACTS | C58: Subs/Consultants | D58: A123 Inc. | E58: 2019-02-19 | F58: T5782 | G58: 5000 | H58: 1234 | I58: Feb | J58: 2019
A59: 2012 | B59: FACULTY FRINGE | C59: Faculty Fringe | D59: Jones, Sam | E59: 2019-02-28 | F59: 5511-3 | G59: 6706.74 | H59: 1234 | I59: Feb | J59: 2019
A60: 2311 | B60: GRA SALARY | C60: GRA Salary | D60: Smith John | E60: 2019-02-28 | F60: 5504-2 | G60: 5000 | H60: 1234 | I60: Feb | J60: 2019
A61: 2312 | B61: GRA FRINGE | C61: GRA Fringe | D61: Smith John | E61: 2019-02-28 | F61: 11354-3 | G61: 1000 | H61: 1234 | I61: Feb | J61: 2019
A62: 9500 | B62: FAC & ADM CHARGE | C62: F&A | D62: Indirect Costs | E62: 2019-02-28 | F62: 953 | G62: 12426.88 | H62: 1234 | I62: Feb | J62: 2019
A63: 2011 | B63: FACULTY SALARY | C63: Faculty Salary | D63: Jones, Sam | E63: 2019-03-17 | F63: 5511 | G63: 10524.32 | H63: 1234 | I63: March | J63: 2019
A64: 2012 | B64: FACULTY FRINGE | C64: Faculty Fringe | D64: Jones, Sam | E64: 2019-03-18 | F64: 5511-3 | G64: 5577.89 | H64: 1234 | I64: Mar | J64: 2019
A65: 5250 | B65: SUBCONTRACTS | C65: Subs/Consultants | D65: 123 Inc. | E65: 2019-03-19 | F65: T42245 | G65: 2700 | H65: 1234 | I65: Mar | J65: 2019
A66: 9500 | B66: FAC & ADM CHARGE | C66: F&A | D66: Indirect Costs | E66: 2019-03-31 | F66: 953 | G66: 7890.08 | H66: 1234 | I66: Mar | J66: 2019
A67: 2011 | B67: FACULTY SALARY | C67: Faculty Salary | D67: Jones, Sam | E67: 2019-04-12 | F67: 5511 | G67: 12654.23 | H67: 1234 | I67: April | J67: 2019
A68: 2012 | B68: FACULTY FRINGE | C68: Faculty Fringe | D68: Jones, Sam | E68: 2019-04-26 | F68: 5511-3 | G68: 6706.74 | H68: 1234 | I68: April | J68: 2019
A69: 2351 | B69: HOURLY | C69: HOURLY | D69: Smith Jim | E69: 2019-04-30 | F69: 11354-2 | G69: 1500 | H69: 1234 | I69: April | J69: 2019
A70: 2380 | B70: HOURLY FRINGE | C70: Hrly Fringe | D70: Smith Jim | E70: 2019-04-30 | F70: 5504-2 | G70: 15 | H70: 1234 | I70: April | J70: 2019
A71: 9500 | B71: FAC & ADM CHARGE | C71: F&A | D71: Indirect Costs | E71: 2019-04-30 | F71: 953 | G71: 10229.23 | H71: 1234 | I71: April | J71: 2019
A72: 2011 | B72: FACULTY SALARY | C72: Faculty Salary | D72: Jones, Sam | E72: 2019-05-14 | F72: 5511 | G72: 20564.21 | H72: 1234 | I72: May | J72: 2019
A73: 2012 | B73: FACULTY FRINGE | C73: Faculty Fringe | D73: Jones, Sam | E73: 2019-05-30 | F73: 5511 | G73: 10899.03 | H73: 1234 | I73: May | J73: 2019
A74: 9500 | B74: FAC & ADM CHARGE | C74: F&A | D74: Indirect Costs | E74: 2019-05-30 | F74: 953 | G74: 15416.99 | H74: 1234 | I74: May | J74: 2019
A75: 2011 | B75: FACULTY SALARY | C75: Faculty Salary | D75: Jones, Sam | E75: 2019-06-15 | F75: 5511 | G75: 12654.23 | H75: 1234 | I75: June | J75: 2019
A76: 2012 | B76: FACULTY FRINGE | C76: Faculty Fringe | D76: Jones, Sam | E76: 2019-06-30 | F76: 5511 | G76: 6706.74 | H76: 1234 | I76: Jun | J76: 2019
A77: 9500 | B77: FAC & ADM CHARGE | C77: F&A | D77: Indirect Costs | E77: 2019-06-30 | F77: 953 | G77: 9486.88 | H77: 1234 | I77: Jun | J77: 2019
F79: Total | G79: =SUM(G2:G78) -> 424367.97
A84: ='University ECC Template'!A55 -> Template Revised: 11/8/2023
A85: ='University ECC Template'!A56 -> 0

Sheet Sample Subcontractor Summary
A1: Summary of Subcontractor/Consultant/Temp Labor Charges
E3: This is a Sample "Summary of Subcontractor/Consultant/Temp Labor Charges" - (These numbers serve only as an example)
B4: Dollar Amount | E4: Use the "Subcontractor Summary Template" Sheet
A5: Subcontractor A | B5: 5500
A6: Subcontractor B | B6: 4500
A7: Subcontractor C | B7: 7300
A8: Subtotal | B8: =SUM(B5:B7) -> 17300
A10: Consultant A | B10: 1100
A11: Consultant B | B11: 300
A12: Subtotal | B12: =SUM(B10:B11) -> 1400
A14: Temp A
A15: Temp B
A16: Subtotal | B16: =SUM(B14:B15) -> 0
A18: Total Charges | B18: =SUM(B8,B12,B16) -> 18700
A21: Total Charges need to reconcile to the total Subcontractor/Consultant/Temp Labor Charges on your ECC.
A23: During an audit, a detailed ECC may be required for any of the subcontractors/consultants/temp labor listed above.
A25: ='University ECC Template'!A55 -> Template Revised: 11/8/2023
